[Event "Betsys MČR v online bleskovém šachu 2021"]
[Site "Chess.com"]
[Date "2021.04.17"]
[Round "12"]
[White "Milan_Jancek"]
[Black "JindrichT_CZE"]
[Result "0-1"]
[WhiteElo "1816"]
[BlackElo "2046"]
[TimeControl "180+1"]
[EndTime "10:57:29 PDT"]
[Termination "Uživatel JindrichT_CZE zvítězil po vzdání soupeře"]

1. c4 {[%clk 0:03:00.9]} 1... c5 {[%clk 0:02:59.5]} 2. Nc3 {[%clk 0:03:01.1]}
2... Nc6 {[%clk 0:02:59.2]} 3. g3 {[%clk 0:03:01.5]} 3... g6 {[%clk 0:02:58.8]}
4. Bg2 {[%clk 0:03:02]} 4... Bg7 {[%clk 0:02:58.7]} 5. d3 {[%clk 0:03:02.7]}
5... d6 {[%clk 0:02:58.5]} 6. e4 {[%clk 0:03:03.2]} 6... e5 {[%clk 0:02:58.5]}
7. Nge2 {[%clk 0:03:03.7]} 7... f5 {[%clk 0:02:55.2]} 8. O-O {[%clk 0:03:04.3]}
8... h5 {[%clk 0:02:54.5]} 9. exf5 {[%clk 0:02:58.8]} 9... gxf5 {[%clk
0:02:53.7]} 10. f4 {[%clk 0:02:59.4]} 10... h4 {[%clk 0:02:52.4]} 11. Nd5 {[%clk
0:02:46.5]} 11... Nf6 {[%clk 0:02:45.9]} 12. Nec3 {[%clk 0:02:43.7]} 12... hxg3
{[%clk 0:02:41.6]} 13. hxg3 {[%clk 0:02:43.4]} 13... Ng4 {[%clk 0:02:31.3]} 14.
fxe5 {[%clk 0:02:36.9]} 14... Ncxe5 {[%clk 0:02:20.7]} 15. Bf4 {[%clk
0:02:33.1]} 15... Ng6 {[%clk 0:02:08.3]} 16. Qe2+ {[%clk 0:02:31.1]} 16... Kf8
{[%clk 0:02:07.8]} 17. Bxd6+ {[%clk 0:02:13.9]} 17... Qxd6 {[%clk 0:02:01.2]}
18. Qxg4 {[%clk 0:02:13.9]} 18... Bd4+ {[%clk 0:01:58.5]} 19. Qxd4 {[%clk
0:01:55.2]} 19... cxd4 {[%clk 0:01:58]} 20. Ne2 {[%clk 0:01:54.2]} 20... Be6
{[%clk 0:01:49.6]} 21. Nxd4 {[%clk 0:01:44.6]} 21... Qc5 {[%clk 0:01:45.7]} 0-1

[Event "Betsys MČR v online bleskovém šachu 2021"]
[Site "Chess.com"]
[Date "2021.04.17"]
[Round "12"]
[White "vadoto"]
[Black "maelic"]
[Result "0-1"]
[WhiteElo "1393"]
[BlackElo "1755"]
[TimeControl "180+1"]
[EndTime "10:57:34 PDT"]
[Termination "Uživatel maelic zvítězil po vzdání soupeře"]

1. e4 {[%clk 0:03:00.9]} 1... e6 {[%clk 0:02:59.2]} 2. d4 {[%clk 0:02:59.8]}
2... d5 {[%clk 0:02:59.7]} 3. e5 {[%clk 0:02:59.4]} 3... c5 {[%clk 0:02:59.7]}
4. c3 {[%clk 0:02:59.2]} 4... Nc6 {[%clk 0:02:59.9]} 5. Nf3 {[%clk 0:02:58.7]}
5... Qb6 {[%clk 0:03:00]} 6. Be3 {[%clk 0:02:56.9]} 6... Qxb2 {[%clk 0:02:58.7]}
7. Nbd2 {[%clk 0:02:52.9]} 7... Qxc3 {[%clk 0:02:55.2]} 8. Be2 {[%clk
0:02:46.4]} 8... cxd4 {[%clk 0:02:54.7]} 9. Bxd4 {[%clk 0:02:44.1]} 9... Nxd4
{[%clk 0:02:54.6]} 10. Nxd4 {[%clk 0:02:44.1]} 10... Qxd4 {[%clk 0:02:54.4]} 11.
O-O {[%clk 0:02:44.2]} 11... Bd7 {[%clk 0:02:50.1]} 12. Nb3 {[%clk 0:02:42]}
12... Qb6 {[%clk 0:02:50.2]} 13. Qd3 {[%clk 0:02:30.5]} 13... Ne7 {[%clk
0:02:45.4]} 14. Rfc1 {[%clk 0:02:28.6]} 14... Nc6 {[%clk 0:02:41.7]} 15. Qg3
{[%clk 0:02:21]} 15... g6 {[%clk 0:02:17.1]} 16. h3 {[%clk 0:02:11.1]} 16... Bg7
{[%clk 0:02:16.6]} 17. Qd3 {[%clk 0:02:00.9]} 17... O-O {[%clk 0:02:12]} 18. Qc2
{[%clk 0:01:58.5]} 18... Rac8 {[%clk 0:02:08.8]} 19. Nc5 {[%clk 0:01:58.1]}
19... Nd4 {[%clk 0:01:51.2]} 20. Qd3 {[%clk 0:01:46.9]} 20... Nxe2+ {[%clk
0:01:50.1]} 21. Qxe2 {[%clk 0:01:46.6]} 21... Rxc5 {[%clk 0:01:49.6]} 22. Rxc5
{[%clk 0:01:46.2]} 22... Qxc5 {[%clk 0:01:50.5]} 23. Qb2 {[%clk 0:01:44.1]}
23... b6 {[%clk 0:01:48.2]} 24. Rc1 {[%clk 0:01:42.9]} 24... Qb5 {[%clk
0:01:44.1]} 25. Qxb5 {[%clk 0:01:40.4]} 25... Bxb5 {[%clk 0:01:45]} 26. Rc8
{[%clk 0:01:39.6]} 26... Rxc8 {[%clk 0:01:44.4]} 0-1

[Event "Betsys MČR v online bleskovém šachu 2021"]
[Site "Chess.com"]
[Date "2021.04.17"]
[Round "12"]
[White "bumurubac"]
[Black "feela1"]
[Result "0-1"]
[WhiteElo "1010"]
[BlackElo "1297"]
[TimeControl "180+1"]
[EndTime "10:57:50 PDT"]
[Termination "Uživatel feela1 zvítězil po vzdání soupeře"]

1. e4 {[%clk 0:03:00.9]} 1... e5 {[%clk 0:02:59.7]} 2. Bc4 {[%clk 0:03:00.3]}
2... Nf6 {[%clk 0:02:55.5]} 3. Nc3 {[%clk 0:02:58.6]} 3... Bc5 {[%clk
0:02:48.6]} 4. Nf3 {[%clk 0:02:57.9]} 4... Nc6 {[%clk 0:02:42.9]} 5. Ng5 {[%clk
0:02:57.1]} 5... d5 {[%clk 0:02:33.6]} 6. exd5 {[%clk 0:02:56.5]} 6... Nxd5
{[%clk 0:02:31.7]} 7. Qf3 {[%clk 0:02:56.2]} 7... Qxg5 {[%clk 0:02:17.5]} 8. d4
{[%clk 0:02:49.5]} 8... Qf6 {[%clk 0:01:59]} 9. Bxd5 {[%clk 0:02:45.8]} 9...
Qxf3 {[%clk 0:01:55.4]} 10. Bxf3 {[%clk 0:02:43.5]} 10... Nxd4 {[%clk
0:01:55.3]} 11. Nd5 {[%clk 0:02:40.5]} 11... O-O {[%clk 0:01:49.7]} 12. Nxc7
{[%clk 0:02:39]} 12... Rb8 {[%clk 0:01:46.4]} 13. Nd5 {[%clk 0:02:38.4]} 13...
Nxc2+ {[%clk 0:01:45.7]} 14. Kd1 {[%clk 0:02:31.5]} 14... Nxa1 {[%clk
0:01:45.4]} 15. Re1 {[%clk 0:02:30.6]} 15... Bxf2 {[%clk 0:01:40.7]} 16. Rxe5
{[%clk 0:02:29.4]} 16... Be6 {[%clk 0:01:39.6]} 17. Ne7+ {[%clk 0:02:27.7]}
17... Kh8 {[%clk 0:01:37.9]} 18. Be4 {[%clk 0:02:27.6]} 18... Rfe8 {[%clk
0:01:34.9]} 19. Rh5 {[%clk 0:02:25.8]} 19... Bg4+ {[%clk 0:01:24.8]} 20. Bf3
{[%clk 0:02:22.1]} 20... Bxh5 {[%clk 0:01:24]} 21. Bxh5 {[%clk 0:02:20.6]} 21...
Rxe7 {[%clk 0:01:23.5]} 22. Bg5 {[%clk 0:02:20.4]} 22... Rd7+ {[%clk 0:01:19.1]}
23. Ke2 {[%clk 0:02:19.4]} 23... Bb6 {[%clk 0:01:15.5]} 24. Bg4 {[%clk
0:02:18.2]} 24... Re8+ {[%clk 0:01:12.6]} 25. Kf3 {[%clk 0:02:15.2]} 25... Rd3+
{[%clk 0:01:10.8]} 26. Kf4 {[%clk 0:02:12.4]} 26... f6 {[%clk 0:01:07.1]} 27.
Be2 {[%clk 0:02:10.4]} 27... fxg5+ {[%clk 0:01:05]} 0-1

[Event "Betsys MČR v online bleskovém šachu 2021"]
[Site "Chess.com"]
[Date "2021.04.17"]
[Round "12"]
[White "terezkai"]
[Black "Figo5144"]
[Result "1-0"]
[WhiteElo "838"]
[BlackElo "566"]
[TimeControl "180+1"]
[EndTime "10:57:50 PDT"]
[Termination "Uživatel terezkai zvítězil matem"]

1. e4 {[%clk 0:02:58]} 1... e5 {[%clk 0:02:59.5]} 2. Bc4 {[%clk 0:02:57]} 2...
Nf6 {[%clk 0:02:51.7]} 3. Nf3 {[%clk 0:02:55.3]} 3... Nc6 {[%clk 0:02:48.4]} 4.
Nc3 {[%clk 0:02:52]} 4... Nxe4 {[%clk 0:02:42.9]} 5. Nxe4 {[%clk 0:02:50.7]}
5... d5 {[%clk 0:02:43]} 6. Bxd5 {[%clk 0:02:48.3]} 6... Qxd5 {[%clk 0:02:41.7]}
7. Nc3 {[%clk 0:02:48.6]} 7... Qd7 {[%clk 0:02:33.8]} 8. O-O {[%clk 0:02:44.9]}
8... Bc5 {[%clk 0:02:30.9]} 9. d3 {[%clk 0:02:40.4]} 9... O-O {[%clk 0:02:28.4]}
10. Be3 {[%clk 0:02:35]} 10... Bd6 {[%clk 0:02:20.1]} 11. d4 {[%clk 0:02:23.5]}
11... e4 {[%clk 0:02:19.1]} 12. Nxe4 {[%clk 0:02:20.5]} 12... Qe6 {[%clk
0:02:03.7]} 13. Nxd6 {[%clk 0:02:11.9]} 13... cxd6 {[%clk 0:02:00]} 14. d5
{[%clk 0:02:03.9]} 14... Qg6 {[%clk 0:01:59]} 15. dxc6 {[%clk 0:01:59.4]} 15...
Bh3 {[%clk 0:01:58.4]} 16. Nh4 {[%clk 0:01:52.7]} 16... bxc6 {[%clk 0:01:44.9]}
17. Nxg6 {[%clk 0:01:51.3]} 17... Bf5 {[%clk 0:01:39.6]} 18. Nxf8 {[%clk
0:01:48.9]} 18... Rxf8 {[%clk 0:01:39.1]} 19. Qxd6 {[%clk 0:01:42.5]} 19... Bxc2
{[%clk 0:01:27.3]} 20. Bc5 {[%clk 0:01:34.3]} 20... Bg6 {[%clk 0:01:23.1]} 21.
Qxf8# {[%clk 0:01:32.6]} 1-0

[Event "Betsys MČR v online bleskovém šachu 2021"]
[Site "Chess.com"]
[Date "2021.04.17"]
[Round "12"]
[White "VeceraP1973"]
[Black "TommyLud"]
[Result "1-0"]
[WhiteElo "1953"]
[BlackElo "2124"]
[TimeControl "180+1"]
[EndTime "10:58:09 PDT"]
[Termination "Uživatel VeceraP1973 zvítězil po vzdání soupeře"]

1. e4 {[%clk 0:03:00.9]} 1... c5 {[%clk 0:02:59.7]} 2. Nf3 {[%clk 0:03:00]} 2...
e6 {[%clk 0:03:00]} 3. d4 {[%clk 0:02:59.6]} 3... cxd4 {[%clk 0:03:00.9]} 4.
Nxd4 {[%clk 0:02:59.4]} 4... Nc6 {[%clk 0:03:01.4]} 5. Be3 {[%clk 0:02:58.2]}
5... Qc7 {[%clk 0:02:58.6]} 6. Nxc6 {[%clk 0:02:57.3]} 6... bxc6 {[%clk
0:02:58.3]} 7. c4 {[%clk 0:02:56.3]} 7... Nf6 {[%clk 0:02:57.5]} 8. Nc3 {[%clk
0:02:56]} 8... Bb4 {[%clk 0:02:55.2]} 9. Bd3 {[%clk 0:02:55.2]} 9... d5 {[%clk
0:02:51.9]} 10. exd5 {[%clk 0:02:50.2]} 10... exd5 {[%clk 0:02:44.6]} 11. Qc2
{[%clk 0:02:41.9]} 11... O-O {[%clk 0:02:24.6]} 12. O-O {[%clk 0:02:40.2]} 12...
dxc4 {[%clk 0:01:45.6]} 13. Bxc4 {[%clk 0:02:34.2]} 13... Ng4 {[%clk 0:01:44.8]}
14. g3 {[%clk 0:02:34.2]} 14... Nxe3 {[%clk 0:01:44.5]} 15. fxe3 {[%clk
0:02:34]} 15... Bc5 {[%clk 0:01:35.6]} 16. Rae1 {[%clk 0:02:24.8]} 16... Bh3
{[%clk 0:01:30.7]} 17. Rf4 {[%clk 0:02:21.7]} 17... h6 {[%clk 0:01:11.1]} 18.
Ne4 {[%clk 0:02:18.8]} 18... Bb6 {[%clk 0:00:54.5]} 19. Rh4 {[%clk 0:02:17.6]}
19... Qd7 {[%clk 0:00:36.1]} 20. Nf6+ {[%clk 0:02:09.5]} 20... gxf6 {[%clk
0:00:34.4]} 21. Qg6+ {[%clk 0:02:08.4]} 1-0

[Event "Betsys MČR v online bleskovém šachu 2021"]
[Site "Chess.com"]
[Date "2021.04.17"]
[Round "12"]
[White "sipos88"]
[Black "Terilka"]
[Result "1-0"]
[WhiteElo "1857"]
[BlackElo "1546"]
[TimeControl "180+1"]
[EndTime "10:58:12 PDT"]
[Termination "Uživatel sipos88 zvítězil matem"]

1. e4 {[%clk 0:02:59.3]} 1... e6 {[%clk 0:03:00.1]} 2. d4 {[%clk 0:02:58.7]}
2... d5 {[%clk 0:03:00.7]} 3. exd5 {[%clk 0:02:58.9]} 3... exd5 {[%clk
0:03:01.6]} 4. Bd3 {[%clk 0:02:53.3]} 4... Bd6 {[%clk 0:03:01.7]} 5. c3 {[%clk
0:02:52.9]} 5... Ne7 {[%clk 0:03:01.7]} 6. Nf3 {[%clk 0:02:51.9]} 6... Bg4
{[%clk 0:03:00.4]} 7. O-O {[%clk 0:02:49.1]} 7... Nd7 {[%clk 0:02:58.9]} 8. Be3
{[%clk 0:02:43.9]} 8... c6 {[%clk 0:02:58.7]} 9. Nbd2 {[%clk 0:02:41.3]} 9...
Qc7 {[%clk 0:02:58.6]} 10. Qc2 {[%clk 0:02:38.7]} 10... O-O-O {[%clk 0:02:54.5]}
11. h3 {[%clk 0:02:36.9]} 11... Be6 {[%clk 0:02:51.4]} 12. b4 {[%clk 0:02:36.8]}
12... a6 {[%clk 0:02:48.9]} 13. a4 {[%clk 0:02:35.2]} 13... f5 {[%clk
0:02:47.3]} 14. Nb3 {[%clk 0:02:29]} 14... h6 {[%clk 0:02:38.9]} 15. b5 {[%clk
0:02:24.3]} 15... g5 {[%clk 0:02:27.2]} 16. bxa6 {[%clk 0:02:23]} 16... Kb8
{[%clk 0:02:21.9]} 17. axb7 {[%clk 0:02:21.5]} 17... g4 {[%clk 0:02:18.7]} 18.
Ne5 {[%clk 0:02:10]} 18... Nxe5 {[%clk 0:02:14.2]} 19. dxe5 {[%clk 0:02:09.5]}
19... Bxe5 {[%clk 0:02:14.5]} 20. h4 {[%clk 0:02:09.6]} 20... Ng6 {[%clk
0:02:09.6]} 21. Nc5 {[%clk 0:02:08.2]} 21... Bd7 {[%clk 0:02:04.3]} 22. Na6+
{[%clk 0:02:06.7]} 22... Kxb7 {[%clk 0:02:02.6]} 23. Nxc7 {[%clk 0:02:06.8]}
23... Kxc7 {[%clk 0:02:03.5]} 24. Bc5 {[%clk 0:02:05.9]} 24... Nxh4 {[%clk
0:02:00.3]} 25. a5 {[%clk 0:02:00.8]} 25... Ra8 {[%clk 0:01:54.5]} 26. Rfe1
{[%clk 0:01:53.4]} 26... Bf4 {[%clk 0:01:49.7]} 27. c4 {[%clk 0:01:46.5]} 27...
dxc4 {[%clk 0:01:43.8]} 28. Qxc4 {[%clk 0:01:45.1]} 28... Ng6 {[%clk 0:01:40.3]}
29. g3 {[%clk 0:01:41.3]} 29... Be5 {[%clk 0:01:39]} 30. Rxe5 {[%clk 0:01:39.8]}
30... Nxe5 {[%clk 0:01:38.1]} 31. Qf4 {[%clk 0:01:39.7]} 31... Rhe8 {[%clk
0:01:36]} 32. Bd4 {[%clk 0:01:38.8]} 32... Kd6 {[%clk 0:01:35.4]} 33. Re1 {[%clk
0:01:36.3]} 33... Kd5 {[%clk 0:01:35.1]} 34. Rxe5+ {[%clk 0:01:33.2]} 34... Rxe5
{[%clk 0:01:34.5]} 35. Qxe5# {[%clk 0:01:33.5]} 1-0

[Event "Betsys MČR v online bleskovém šachu 2021"]
[Site "Chess.com"]
[Date "2021.04.17"]
[Round "12"]
[White "Ondre2836"]
[Black "Maty_2010"]
[Result "1-0"]
[WhiteElo "1244"]
[BlackElo "943"]
[TimeControl "180+1"]
[EndTime "10:58:13 PDT"]
[Termination "Uživatel Ondre2836 zvítězil matem"]

1. e4 {[%clk 0:03:00.9]} 1... e5 {[%clk 0:03:00.2]} 2. Bc4 {[%clk 0:02:59.9]}
2... Bc5 {[%clk 0:03:00.2]} 3. Nf3 {[%clk 0:02:56.1]} 3... Nf6 {[%clk
0:02:59.1]} 4. d3 {[%clk 0:02:49]} 4... Ng4 {[%clk 0:02:54.5]} 5. O-O {[%clk
0:02:47.2]} 5... d6 {[%clk 0:02:48.1]} 6. c3 {[%clk 0:02:46.3]} 6... Nc6 {[%clk
0:02:42.7]} 7. a4 {[%clk 0:02:44.6]} 7... Bd7 {[%clk 0:02:34.3]} 8. h3 {[%clk
0:02:42.8]} 8... Nf6 {[%clk 0:02:29.6]} 9. b4 {[%clk 0:02:41.3]} 9... Bb6 {[%clk
0:02:27.7]} 10. a5 {[%clk 0:02:40.8]} 10... d5 {[%clk 0:02:10.3]} 11. exd5
{[%clk 0:02:36.2]} 11... Nxd5 {[%clk 0:02:09.5]} 12. Bxd5 {[%clk 0:02:33.9]}
12... Qf6 {[%clk 0:01:55.6]} 13. Bxc6 {[%clk 0:02:29.8]} 13... Bxc6 {[%clk
0:01:54.6]} 14. axb6 {[%clk 0:02:28.1]} 14... Bd7 {[%clk 0:01:50.4]} 15. Bg5
{[%clk 0:02:25.9]} 15... Qg6 {[%clk 0:01:49.6]} 16. Rxa7 {[%clk 0:02:22.6]}
16... Rb8 {[%clk 0:01:44.7]} 17. bxc7 {[%clk 0:02:20.5]} 17... Rc8 {[%clk
0:01:44.6]} 18. Rxb7 {[%clk 0:02:19.9]} 18... h6 {[%clk 0:01:41.1]} 19. Rb8
{[%clk 0:02:15.7]} 19... hxg5 {[%clk 0:01:37.8]} 20. Rxc8+ {[%clk 0:02:14.6]}
20... Bxc8 {[%clk 0:01:37.7]} 21. Qe2 {[%clk 0:02:12.6]} 21... g4 {[%clk
0:01:37.3]} 22. Qxe5+ {[%clk 0:02:09.2]} 22... Be6 {[%clk 0:01:33.7]} 23. c8=Q+
{[%clk 0:02:07.1]} 23... Ke7 {[%clk 0:01:25.6]} 24. Qcc7+ {[%clk 0:02:05.8]}
24... Ke8 {[%clk 0:01:21.9]} 25. Qb5+ {[%clk 0:02:04.7]} 25... Bd7 {[%clk
0:01:14.7]} 26. Qbe5+ {[%clk 0:01:56.5]} 26... Be6 {[%clk 0:01:10.6]} 27. Qc8+
{[%clk 0:01:55.1]} 27... Ke7 {[%clk 0:01:10.5]} 28. Qxh8 {[%clk 0:01:53.8]}
28... gxh3 {[%clk 0:01:10]} 29. Qc5+ {[%clk 0:01:49.4]} 29... Kf6 {[%clk
0:01:09.2]} 30. Qd8# {[%clk 0:01:48.5]} 1-0

[Event "Betsys MČR v online bleskovém šachu 2021"]
[Site "Chess.com"]
[Date "2021.04.17"]
[Round "12"]
[White "penguinorodriguez"]
[Black "VojtechPlat"]
[Result "0-1"]
[WhiteElo "2546"]
[BlackElo "2842"]
[TimeControl "180+1"]
[EndTime "10:58:14 PDT"]
[Termination "Uživatel VojtechPlat zvítězil po vzdání soupeře"]

1. d4 {[%clk 0:02:59.7]} 1... d6 {[%clk 0:03:00]} 2. Nf3 {[%clk 0:02:59.4]} 2...
Bg4 {[%clk 0:02:59.4]} 3. c4 {[%clk 0:02:57.2]} 3... c6 {[%clk 0:02:59.4]} 4.
Nc3 {[%clk 0:02:55.9]} 4... Nd7 {[%clk 0:02:59.1]} 5. g3 {[%clk 0:02:53.6]} 5...
e5 {[%clk 0:02:58.8]} 6. Bg2 {[%clk 0:02:51.6]} 6... Ngf6 {[%clk 0:02:58.9]} 7.
h3 {[%clk 0:02:48.1]} 7... Bxf3 {[%clk 0:02:57.1]} 8. exf3 {[%clk 0:02:45.8]}
8... Be7 {[%clk 0:02:55.5]} 9. O-O {[%clk 0:02:45.4]} 9... O-O {[%clk
0:02:54.7]} 10. f4 {[%clk 0:02:41.8]} 10... exd4 {[%clk 0:02:53.3]} 11. Qxd4
{[%clk 0:02:41.8]} 11... a5 {[%clk 0:02:53.3]} 12. b3 {[%clk 0:02:35.9]} 12...
Re8 {[%clk 0:02:53]} 13. Bb2 {[%clk 0:02:35.8]} 13... Bf8 {[%clk 0:02:51.7]} 14.
Rad1 {[%clk 0:02:33.4]} 14... Nc5 {[%clk 0:02:50.8]} 15. g4 {[%clk 0:02:28.3]}
15... Ne6 {[%clk 0:02:47.9]} 16. Qd2 {[%clk 0:02:26.1]} 16... Nc5 {[%clk
0:02:35.7]} 17. Qd4 {[%clk 0:02:22.9]} 17... Qc7 {[%clk 0:02:32.4]} 18. f5
{[%clk 0:02:12.8]} 18... Nfd7 {[%clk 0:02:29.5]} 19. f4 {[%clk 0:02:11]} 19...
a4 {[%clk 0:02:19.3]} 20. b4 {[%clk 0:01:53.7]} 20... a3 {[%clk 0:02:19.2]} 21.
Ba1 {[%clk 0:01:51.4]} 21... Na6 {[%clk 0:02:17.9]} 22. Rb1 {[%clk 0:01:35.8]}
22... d5 {[%clk 0:02:16.5]} 23. c5 {[%clk 0:01:16.4]} 23... Naxc5 {[%clk
0:02:15.4]} 24. Kh2 {[%clk 0:01:13.2]} 24... Ne4 {[%clk 0:02:08.5]} 25. Nxe4
{[%clk 0:01:09.8]} 25... dxe4 {[%clk 0:02:08.4]} 26. Bxe4 {[%clk 0:01:09.6]}
26... Nf6 {[%clk 0:02:08.2]} 27. Bf3 {[%clk 0:01:06.2]} 27... Rad8 {[%clk
0:02:08]} 28. Qc3 {[%clk 0:01:05.3]} 28... Qxf4+ {[%clk 0:02:06.9]} 29. Kg2
{[%clk 0:00:59.6]} 29... Rd2+ {[%clk 0:02:02.3]} 0-1

[Event "Betsys MČR v online bleskovém šachu 2021"]
[Site "Chess.com"]
[Date "2021.04.17"]
[Round "12"]
[White "Mimochodem"]
[Black "MametevArtem097"]
[Result "0-1"]
[WhiteElo "1792"]
[BlackElo "1995"]
[TimeControl "180+1"]
[EndTime "10:58:15 PDT"]
[Termination "Uživatel MametevArtem097 zvítězil po vzdání soupeře"]

1. e4 {[%clk 0:03:00.9]} 1... c5 {[%clk 0:02:58.5]} 2. Nf3 {[%clk 0:03:01.2]}
2... Nc6 {[%clk 0:02:59]} 3. Nc3 {[%clk 0:03:01.6]} 3... Nd4 {[%clk 0:02:59.9]}
4. Bc4 {[%clk 0:02:58.4]} 4... Nxf3+ {[%clk 0:02:57.6]} 5. Qxf3 {[%clk
0:02:57.7]} 5... e6 {[%clk 0:02:58.5]} 6. O-O {[%clk 0:02:53.1]} 6... a6 {[%clk
0:02:56.4]} 7. a4 {[%clk 0:02:53.5]} 7... d6 {[%clk 0:02:45.5]} 8. d3 {[%clk
0:02:52.6]} 8... Nf6 {[%clk 0:02:44.7]} 9. Bg5 {[%clk 0:02:49.2]} 9... Be7
{[%clk 0:02:44.5]} 10. Rfd1 {[%clk 0:02:45.4]} 10... O-O {[%clk 0:02:43.3]} 11.
d4 {[%clk 0:02:40.7]} 11... cxd4 {[%clk 0:02:39]} 12. Rxd4 {[%clk 0:02:40.8]}
12... h6 {[%clk 0:02:38.7]} 13. Bh4 {[%clk 0:02:39.7]} 13... Qb6 {[%clk
0:02:31.2]} 14. Rad1 {[%clk 0:02:35]} 14... Qxb2 {[%clk 0:02:27]} 15. Bxf6
{[%clk 0:02:34]} 15... Bxf6 {[%clk 0:02:26.6]} 16. Rb1 {[%clk 0:02:26.8]} 16...
Qa3 {[%clk 0:02:17.5]} 17. Rd3 {[%clk 0:02:23.6]} 17... Bxc3 {[%clk 0:02:10.5]}
18. Rxc3 {[%clk 0:02:21.4]} 18... Qxa4 {[%clk 0:02:11]} 19. Bd3 {[%clk
0:02:12.7]} 19... e5 {[%clk 0:02:04.5]} 20. Qe3 {[%clk 0:02:08.4]} 20... b5
{[%clk 0:02:03]} 21. f4 {[%clk 0:02:08.3]} 21... exf4 {[%clk 0:01:55.8]} 22.
Qxf4 {[%clk 0:02:05.7]} 22... Qd4+ {[%clk 0:01:55.7]} 23. Qf2 {[%clk 0:01:54.8]}
23... Qxc3 {[%clk 0:01:55.1]} 24. e5 {[%clk 0:01:55.3]} 24... Qxe5 {[%clk
0:01:54.2]} 25. Re1 {[%clk 0:01:54.3]} 25... Qf6 {[%clk 0:01:53.9]} 26. Qe3
{[%clk 0:01:53.9]} 26... Bf5 {[%clk 0:01:51.7]} 27. Rf1 {[%clk 0:01:52.9]} 27...
Rfe8 {[%clk 0:01:46.1]} 28. Qg3 {[%clk 0:01:45.4]} 28... Qd4+ {[%clk 0:01:43.4]}
29. Kh1 {[%clk 0:01:43.4]} 29... Bxd3 {[%clk 0:01:41.8]} 30. cxd3 {[%clk
0:01:43.6]} 30... Re3 {[%clk 0:01:39.4]} 31. Qf2 {[%clk 0:01:38.5]} 31... f6
{[%clk 0:01:26.8]} 32. Re1 {[%clk 0:01:36.9]} 32... Rae8 {[%clk 0:01:25.2]} 0-1

[Event "Betsys MČR v online bleskovém šachu 2021"]
[Site "Chess.com"]
[Date "2021.04.17"]
[Round "12"]
[White "TrickyPeat"]
[Black "Klokan64"]
[Result "1-0"]
[WhiteElo "2157"]
[BlackElo "1443"]
[TimeControl "180+1"]
[EndTime "10:58:15 PDT"]
[Termination "Uživatel TrickyPeat zvítězil na čas"]

1. e4 {[%clk 0:03:00.9]} 1... d6 {[%clk 0:02:58.8]} 2. d4 {[%clk 0:02:59.6]}
2... Nf6 {[%clk 0:02:58]} 3. Nc3 {[%clk 0:02:59.2]} 3... c6 {[%clk 0:02:57.5]}
4. Bg5 {[%clk 0:02:56.1]} 4... Bg4 {[%clk 0:02:52.7]} 5. f3 {[%clk 0:02:54.5]}
5... Bh5 {[%clk 0:02:52.2]} 6. Qd2 {[%clk 0:02:54.1]} 6... h6 {[%clk 0:02:46.9]}
7. Be3 {[%clk 0:02:53.5]} 7... Nbd7 {[%clk 0:02:34.9]} 8. Nge2 {[%clk
0:02:53.1]} 8... e6 {[%clk 0:02:30.7]} 9. Nf4 {[%clk 0:02:52.4]} 9... g5 {[%clk
0:01:55.7]} 10. Nxh5 {[%clk 0:02:51.2]} 10... Nxh5 {[%clk 0:01:54.3]} 11. O-O-O
{[%clk 0:02:51.6]} 11... Qa5 {[%clk 0:01:44.5]} 12. Kb1 {[%clk 0:02:49.7]} 12...
O-O-O {[%clk 0:01:22]} 13. Bc4 {[%clk 0:02:45.7]} 13... d5 {[%clk 0:01:14.7]}
14. Bb3 {[%clk 0:02:42]} 14... dxe4 {[%clk 0:01:06.3]} 15. fxe4 {[%clk
0:02:40.2]} 15... Bb4 {[%clk 0:00:57.6]} 16. Rhf1 {[%clk 0:02:35.4]} 16... Bxc3
{[%clk 0:00:52.9]} 17. Qxc3 {[%clk 0:02:34.1]} 17... Qxc3 {[%clk 0:00:52.2]} 18.
bxc3 {[%clk 0:02:33.8]} 18... Rhf8 {[%clk 0:00:16.4]} 19. d5 {[%clk 0:02:33.1]}
19... exd5 {[%clk 0:00:13.4]} 20. exd5 {[%clk 0:02:32.5]} 20... Ne5 {[%clk
0:00:05.4]} 21. Bxa7 {[%clk 0:02:29.6]} 1-0

[Event "Betsys MČR v online bleskovém šachu 2021"]
[Site "Chess.com"]
[Date "2021.04.17"]
[Round "12"]
[White "catanist19"]
[Black "Dan1612"]
[Result "0-1"]
[WhiteElo "1739"]
[BlackElo "1970"]
[TimeControl "180+1"]
[EndTime "10:58:16 PDT"]
[Termination "Uživatel Dan1612 zvítězil po vzdání soupeře"]

1. d4 {[%clk 0:02:58.9]} 1... g6 {[%clk 0:03:00.1]} 2. c4 {[%clk 0:02:58]} 2...
Bg7 {[%clk 0:03:01]} 3. Nc3 {[%clk 0:02:57.1]} 3... d6 {[%clk 0:03:00.7]} 4. e4
{[%clk 0:02:56.9]} 4... Nc6 {[%clk 0:02:55.6]} 5. Nf3 {[%clk 0:02:54.3]} 5...
Nf6 {[%clk 0:02:54.1]} 6. Be3 {[%clk 0:02:52.7]} 6... O-O {[%clk 0:02:54.5]} 7.
h3 {[%clk 0:02:50.5]} 7... e5 {[%clk 0:02:53]} 8. d5 {[%clk 0:02:48.8]} 8... Ne7
{[%clk 0:02:52.5]} 9. Bd3 {[%clk 0:02:44.2]} 9... Ne8 {[%clk 0:02:51.8]} 10. c5
{[%clk 0:02:40]} 10... f5 {[%clk 0:02:48.8]} 11. cxd6 {[%clk 0:02:34.7]} 11...
cxd6 {[%clk 0:02:47.4]} 12. Bg5 {[%clk 0:02:26.1]} 12... f4 {[%clk 0:02:41]} 13.
Rc1 {[%clk 0:02:17.5]} 13... a6 {[%clk 0:02:36.2]} 14. Bxe7 {[%clk 0:02:07.6]}
14... Qxe7 {[%clk 0:02:34.2]} 15. Qb3 {[%clk 0:02:00.7]} 15... h6 {[%clk
0:02:23.9]} 16. h4 {[%clk 0:01:53.1]} 16... Bg4 {[%clk 0:02:17.4]} 17. Qb6
{[%clk 0:01:47.3]} 17... Bxf3 {[%clk 0:02:12.9]} 18. gxf3 {[%clk 0:01:45.3]}
18... Bf6 {[%clk 0:02:12.9]} 19. h5 {[%clk 0:01:41.5]} 19... Qg7 {[%clk
0:01:44.4]} 20. Ke2 {[%clk 0:01:33.5]} 20... g5 {[%clk 0:01:40.7]} 21. b4 {[%clk
0:01:13.2]} 21... Bd8 {[%clk 0:01:37.5]} 0-1

[Event "Betsys MČR v online bleskovém šachu 2021"]
[Site "Chess.com"]
[Date "2021.04.17"]
[Round "12"]
[White "NeumanPetr"]
[Black "xnepom"]
[Result "1-0"]
[WhiteElo "2474"]
[BlackElo "2251"]
[TimeControl "180+1"]
[EndTime "10:58:19 PDT"]
[Termination "Uživatel NeumanPetr zvítězil po vzdání soupeře"]

1. d4 {[%clk 0:03:00.9]} 1... d5 {[%clk 0:02:59.7]} 2. c4 {[%clk 0:03:01.4]}
2... e6 {[%clk 0:02:59.8]} 3. Nc3 {[%clk 0:03:02]} 3... c5 {[%clk 0:03:00.2]} 4.
cxd5 {[%clk 0:03:01.8]} 4... cxd4 {[%clk 0:03:00.7]} 5. Qa4+ {[%clk 0:03:01.9]}
5... b5 {[%clk 0:02:59.9]} 6. Nxb5 {[%clk 0:02:46.8]} 6... Bd7 {[%clk
0:02:59.9]} 7. Bf4 {[%clk 0:02:23.2]} 7... a6 {[%clk 0:02:36.4]} 8. e4 {[%clk
0:02:19.9]} 8... Qb6 {[%clk 0:02:00]} 9. Rc1 {[%clk 0:01:58.2]} 9... Bxb5 {[%clk
0:00:50.9]} 10. Bxb5+ {[%clk 0:01:55.2]} 10... Qxb5 {[%clk 0:00:51.4]} 11. Rc8+
{[%clk 0:01:27.8]} 11... Kd7 {[%clk 0:00:50.8]} 12. Qxb5+ {[%clk 0:01:26.3]}
12... axb5 {[%clk 0:00:51]} 13. Rxf8 {[%clk 0:01:26.4]} 1-0